Cogmind - Beta 13 @@@ ROGUE MODE // 2024.05.07 @ 17:41:59 Player: mag Result: Destroyed by B3-2NH(R) with Subdweller Beam Cannon Performance ------------- Evolutions (0) 0 Regions Visited (2) 400 Robots Destroyed (29) 145 Value Destroyed (553) 553 Prototype IDs (0) 0 Alien Tech Used (0) 0 Bonus (0) 0 TOTAL SCORE: 1098 Bonus ------- None Cogmind --------- Core Integrity 0/250 Matter 252/300 Energy 100/100 System Corruption 0% Temperature Cool (9) Movement Rolling (130) Ox2 Location -10/Subcaves Parts ------- > --- POWER (1) -------- (None) > --- PROPULSION (2) --- Compact Wheel > --- UTILITY (2) ------ High-capacity Storage Unit > --- WEAPON (2) ------- Battle Cannon > --- INVENTORY (20) --- Ion Engine Light Ion Engine Light Treads Light Treads Wheel Wheel Compact Wheel Humpback Medium Matter Pod (100) Improved Terrain Scanner Core Shielding Scrap Shield Particle Gun Particle Gun Assault Rifle Light Assault Rifle Light Assault Rifle Mining Laser Peak State ------------ > --- POWER ------------ Light Nuclear Core > --- PROPULSION ------- Wheel Wheel > --- UTILITY ---------- High-capacity Storage Unit Sensor Array > --- WEAPON ----------- Particle Gun Assault Rifle > --- INVENTORY -------- Light Ion Engine Light Treads Light Treads Wheel Medium Matter Pod Medium Matter Pod Improved Terrain Scanner Particle Gun Light Assault Rifle Light Assault Rifle Mining Laser [Rating: 11] Favorites ----------- Power Ion Engine Engine Ion Engine Power Core Light Nuclear Core Propulsion Wheel Treads Light Treads Wheel Wheel Utility High-capacity Storage Unit Device Sensor Array Storage High-capacity Storage Unit Protection Core Shielding Weapon Assault Rifle Energy Gun Particle Gun Ballistic Gun Assault Rifle Ballistic Cannon Battle Cannon Launcher Grenade Launcher Build | -11 -10 -10 ------- Run | Yrd Mat Sub Slots Evolved . | . . . Power . | . . . Propulsion . | . . . Utility . | . . . Weapon . | . . . Parts Attached 29 | 9 15 5 Power 4 | 1 2 1 Engine 3 | 1 1 1 Core 1 | . 1 . Reactor . | . . . Propulsion 10 | 3 7 . Treads 2 | 2 . . Leg . | . . . Wheel 8 | 1 7 . Hover . | . . . Flight . | . . . Utility 8 | 3 4 1 Device 3 | 2 1 . Storage 4 | 1 2 1 Processor . | . . . Hackware . | . . . Protection 1 | . 1 . Artifact . | . . . Weapon 7 | 2 2 3 Energy Gun 1 | . 1 . Energy Cannon . | . . . Ballistic Gun 3 | 2 1 . Ballistic Cannon 1 | . . 1 Launcher 2 | . . 2 Special Weapon . | . . . Impact Weapon . | . . . Slashing Weapon . | . . . Piercing Weapon . | . . . Special Melee Weapon . | . . . Unidentified Prototypes . | . . . Parts Lost 5 | . 2 3 Power 2 | . 1 1 Propulsion 1 | . . 1 Utility 1 | . 1 . Weapon 1 | . . 1 Highest Loss Streak 3 | . 2 3 To Critical Strikes . | . . . Average Slot Usage (%) 99 | . 99 95 Engine 7 | . 7 14 Core 5 | . 6 . Treads 5 | . 5 . Wheel 22 | . 22 28 Device 10 | . 11 . Storage 15 | . 14 23 Protection 1 | . 2 . Energy Gun 5 | . 6 . Ballistic Gun 20 | . 21 14 Launcher 1 | . . 11 Naked Turns . | . . . Heaviest Build 51 | 14 51 51 Greatest Support 40 | 40 40 26 Greatest Overweight (x) 2 | . 2 1 Average Overweight (x) 1 | . 1 1 Largest Inventory Capacity 20 | 8 20 20 Average Capacity 15 | 7 17 20 Most Carried 20 | 8 16 20 Average Carried 10 | 4 11 16 Final Capacity 20 | 8 20 20 Final Carried 20 | 8 14 20 Class Distribution -------------------- 58% | Mutant 41% | Scavenger-Mutant Dominant Class ---------------- Mutant | -10/Materials Scavenger-Mutant | -10/Subcaves Resources | -11 -10 -10 ----------- Run | Yrd Mat Sub Matter Collected 915 | 436 444 35 Remotely . | . . . Salvage Created 920 | 174 635 111 Parts 64 | 23 30 11 Haulers Intercepted . | . . . Recyclers Shooed 5 | . 5 . Parts Field Recycled . | . . . Retrieved Matter . | . . . Parts Self-Destructed . | . . . Prevented . | . . . Kills | -11 -10 -10 ------- Run | Yrd Mat Sub Combat Hostiles Destroyed 11 | . 6 5 Guns 5 | . 5 . AOE 5 | . . 5 Classes Destroyed 6 | 3 2 1 Worker 6 | 2 4 . Tunneler 5 | 5 . . Recycler 4 | 1 3 . Watcher 3 | . 3 . Grunt 6 | . 6 . Subdweller 5 | . . 5 Best Kill Streak 5 | 3 5 4 Combat Bots Only 4 | . 2 4 Max Kills in Single Turn 3 | 2 1 3 Gunslinging . | . . . Exploded 3 | . . 3 Melee . | . . . Uniques/NPCs Destroyed . | . . . Combat | -11 -10 -10 -------- Run | Yrd Mat Sub Hostile Shots Fired 77 | . 48 29 Missed 25 | . 14 11 Damage Taken 920 | . 462 458 Core 255 | . 110 145 Absorbed by Shields . | . . . Redirected to Shielding 3 | . 3 . Core Remaining (%) 100 | 100 . . Volleys Fired 80 | 15 58 7 Largest 2 | 2 2 2 Hottest 85 | 40 85 69 Shots Fired 150 | 30 109 11 Gun 142 | 30 109 3 Cannon 4 | . . 4 Launcher 4 | . . 4 Special . | . . . Kinetic 109 | 30 72 7 Thermal 37 | . 37 . Explosive 4 | . . 4 Electromagnetic . | . . . Robot Hit Streak 10 | 5 9 10 Robot Miss Streak 4 | 2 4 . Penetration Max . | . . . Secondary Targets 1 | . 1 . Max Gunslinging Chain 1 | . 1 . Shots Hit Robots 90 | 18 65 7 Core Hits 48 | 11 27 10 Critical Kills 1 | . 1 . Critical Parts Destroyed . | . . . Critical Strikes 2 | . 2 . Burn 1 | . 1 . Destroy 1 | . 1 . Melee Attacks . | . . . Impact . | . . . Slashing . | . . . Piercing . | . . . Sneak Attacks . | . . . Combat Hostiles . | . . . Follow-up Attacks . | . . . Damage Inflicted 1530 | 193 846 491 Guns 1035 | 193 815 27 Cannons 63 | . . 63 Explosions 401 | . . 401 Melee . | . . . Ramming 31 | . 31 . Kinetic 765 | 193 482 90 Thermal 333 | . 333 . Explosive 401 | . . 401 Electromagnetic . | . . . Impact . | . . . Slashing . | . . . Piercing . | . . . Highest Corruption . | . . . Average Corruption . | . . . Corruption Purged . | . . . Corruption Blocked . | . . . Overload Shots . | . . . Overflow Damage 18 | . 16 2 Projectiles . | . . . Explosions 2 | . . 2 Melee 16 | . 16 . Knockbacks 1 | . 1 . Impact 1 | . 1 . Kinetic . | . . . Secondary . | . . . Self-Inflicted Damage 42 | . 15 27 Shots 2 | . . 2 Rammed 1 | . 1 . Targets Rammed 1 | . 1 . Kicked . | . . . Crushed . | . . . Highest Temperature 396 | . 396 4 Average Temperature 92 | . 93 4 Received Heat Transfer 381 | . 273 108 Effects 3 | . 3 . Energy Bleed 1 | . 1 . Interference 1 | . 1 . Short Circuit 1 | . 1 . Siege Activations . | . . . Robots Corrupted . | . . . Combat Hostiles . | . . . Parts Fried . | . . . Impact Corruptions 1 | . 1 . Robots Melted 1 | . 1 . Combat Hostiles 1 | . 1 . Parts Melted 1 | . 1 . Heat Transferred 851 | . 851 . Parts Sabotaged . | . . . Parts Stolen . | . . . Parts Stripped . | . . . Power Chain Reactions . | . . . Alert | -11 -10 -10 ------- Run | Yrd Mat Sub Peak Influence 197 | 40 197 . Initial 26 | . 26 . Average 69 | 15 85 . Maximum Alert Level . | . . . Low Security (%) 100 | 100 100 . Level 1 . | . . . Level 2 . | . . . Level 3 . | . . . Level 4 . | . . . Level 5 . | . . . High Security . | . . . Max Security . | . . . Squads Dispatched 1 | . 1 . Investigation 1 | . 1 . Extermination . | . . . Reinforcement . | . . . Assault . | . . . Garrison . | . . . Intercept . | . . . Searches Triggered . | . . . Construction Impeded . | . . . Haulers Reinforced . | . . . Active Scanning Responses . | . . . Cargo Convoy Interrupts . | . . . Stealth | -11 -10 -10 --------- Run | Yrd Mat Sub Distress Signals 1 | . 1 . Communications Jammed . | . . . Distress Signals . | . . . Times Spotted 24 | . 14 10 Peak Tracking Total 7 | . 3 7 Tactical Retreats 2 | . 2 . Traps | -11 -10 -10 ------- Run | Yrd Mat Sub Traps Triggered 1 | . 1 . Indirectly . | . . . Trap Hack Attempts . | . . . Triggered . | . . . Disarmed . | . . . Reprogrammed . | . . . Reused . | . . . Traps Extracted . | . . . Installed . | . . . Triggered . | . . . Machines | -11 -10 -10 ---------- Run | Yrd Mat Sub Machines Disabled 1 | . 1 . Max in Single Turn 1 | . 1 . Machines Repaired . | . . . Machines Dismantled . | . . . Machines Sabotaged . | . . . Overloaded Fab Kills . | . . . Hacking | -11 -10 -10 --------- Run | Yrd Mat Sub Machines Accessed 3 | . 3 . Terminals 1 | . 1 . Fabricators . | . . . Repair Stations . | . . . Recycling Units 2 | . 2 . Scanalyzers . | . . . Garrison Access . | . . . Total Hacks 4 | . 4 . Successful . | . . . Failed 4 | . 4 . Catastrophic . | . . . Database Lockouts . | . . . Manual . | . . . Terminals 1 | . 1 . Fabricators . | . . . Repair Stations . | . . . Recycling Units 3 | . 3 . Scanalyzers . | . . . Garrison Access . | . . . Terminal Hacks . | . . . Fabricator Hacks . | . . . Repair Station Hacks . | . . . Recycling Unit Hacks . | . . . Scanalyzer . | . . . Garrison Access Hacks . | . . . Unauthorized Hacks . | . . . Terminals . | . . . Fabricators . | . . . Repair Stations . | . . . Recycling Units . | . . . Scanalyzers . | . . . Garrison Access . | . . . Data Cores Recovered . | . . . Used . | . . . Hacking Detections 2 | . 2 . Full Trace Events . | . . . Feedback Events . | . . . Feedback Blocked . | . . . Robot Schematics Acquired . | . . . Robots Built . | . . . Authchips . | . . . Time . | . . . Total Robot Build Rating . | . . . Part Schematics Acquired . | . . . Parts Built . | . . . Authchips . | . . . Time . | . . . Total Part Build Rating . | . . . Parts Repaired . | . . . Time . | . . . Parts Recycled . | . . . Recycled Matter . | . . . Retrieved Matter . | . . . Retrieved Components . | . . . Parts Scanalyzed . | . . . Part Schematics Acquired . | . . . Parts Damaged . | . . . Bothacking | -11 -10 -10 ------------ Run | Yrd Mat Sub Used RIF Installer . | . . . Robots Hacked . | . . . Non-combat . | . . . Combat . | . . . Robot Hacks Applied . | . . . Relay Couplers Released . | . . . Fabnet Peak Effective % . | . . . Robots Rewired . | . . . Allies Hacked . | . . . Hacks Repelled . | . . . Allies | -11 -10 -10 -------- Run | Yrd Mat Sub Total Allies . | . . . Largest Group . | . . . Highest-Rated Group . | . . . Highest-Rated Ally . | . . . Total Orders . | . . . Ally Attacks . | . . . Total Damage . | . . . Kills . | . . . Allies Corrupted . | . . . Allies Melted 1 | . . 1 Intel | -11 -10 -10 ------- Run | Yrd Mat Sub Robot Analysis Total . | . . . Derelict Logs Recovered . | . . . Drone Launches . | . . . Drone Recoveries . | . . . Exploration | -11 -10 -10 ------------- Run | Yrd Mat Sub Turns Passed 1178 | 246 797 135 Spaces Moved 683 | 115 467 101 Core 4 | 4 . . Treads 197 | 104 93 . Legs . | . . . Wheels 482 | 7 374 101 Hover . | . . . Flight . | . . . Fastest Speed 50 | 50 105 105 Average Speed 122 | 151 119 105 Slowest Speed 240 | 160 240 105 Overloaded Moves . | . . . Propulsion Burnouts . | . . . Robots Hopped . | . . . Cave-ins Triggered . | . . . Exploration Rate (%) 28 | 8 66 12 Regions Visited 2 Branch Regions 1 Pre-discovered Areas . | . . . Known Exits Taken . | . . . Unknown Exits Taken 2 | 1 1 . Scrap Searched . | . . . Spaces Dug . | . . . Terrain Destroyed 11 | . . 11 Melee . | . . . Projectile 1 | . . 1 AOE 10 | . . 10 Terrain Rammed . | . . . Walls Destroyed . | . . . Machines Disabled . | . . . Actions | -11 -10 -10 --------- Run | Yrd Mat Sub Total 874 | 158 598 118 Wait 43 | 7 36 . Move 681 | 114 466 101 Hop . | . . . Pick Up 30 | 11 15 4 Fast Attach 7 | 5 2 . Attach 4 | 3 1 . Detach 1 | 1 . . Swap 18 | 1 12 5 Drop 9 | 1 7 1 Fire 80 | 15 58 7 Melee . | . . . Ram 1 | . 1 . Kick . | . . . Crush . | . . . Escape Stasis . | . . . Rewire . | . . . Trap . | . . . Miscellaneous . | . . . Route ------- -11/Scrapyard -10/Materials (discovered 2 exits: [*Mat] / [*Sub]) -10/Subcaves History --------- Turn | Location | Event 17 | -11/Scrapyard | Discovered new exit (range 15) 247 | -11/Scrapyard | Entered Materials 302 | -10/Materials | Build established: Mutant 632 | -10/Materials | Discovered new exit (range 5) 965 | -10/Materials | Build established: Scavenger-Mutant 1036 | -10/Materials | Discovered new exit (range 8) 1044 | -10/Materials | Entered Subcaves 1098 | -10/Subcaves | Ambushed by Subdwellers from Twisted Machinery 1155 | -10/Subcaves | Ambushed by swarm of Subdwellers 1165 | -10/Subcaves | Core integrity fell below 50% 1173 | -10/Subcaves | Core integrity fell below 20% 1179 | -10/Subcaves | Destroyed by B3-2NH(R) with Subdweller Beam Cannon Last Messages --------------- UL-T5E(R) emerges from the Twisted Machinery. XB-42U(R) affixes Scrap Shield Fragment to Scrap Shield. UE-USQ(g): "Sorry we're late! Had another grouchy Sub to deal with. Who's the new fellow?" UE-USQ(g) destroyed. FB-H1M(R): "ARGHSUB!" T3-3OY(R) affixes Scrap Shield Fragment to Scrap Shield. T3-3OY(R) destroyed. Sub. Power Source destroyed. 90-CK3(g) destroyed. UL-T5E(R) destroyed. XB-42U(R) destroyed. W8-BE2(R) destroyed. Grenade Launcher destroyed. Destroyed Grenade Launcher. Wheel destroyed. Destroyed Wheel. Map ----- +----------------------------------------------------+ | ??????????????????????# #? #????????? | | ?????????????????????# ## #????????? | | ??????????????? ###### #?????????? | | ???????????????# ???#### ###?????????? | | ???????????????##### ?### ### #???????????? | | ???????????????????# ### ### #???????????? | | ???????????????????# ?# #?# #???????????? | | ??????????????????? ?# ### ##??????????? | | ?????????????????? ??# ## ##?????????? | | ?????????????????# ???# ##????????? | | ??????????????????? ? ?????# #????????? | | ??????????????????????????## #????????? | | ??????????????????????????# ##???????? | | ?????????????????????????## #???????? | | ????????????????????????## #???????? | | ????????????????????????# #???????? | | ????????????????????????# =g! ##???????? | | ????????????????????????# !**# ###????????? | | ????????????? ???#?????# R;## #?????????? | | ???????????? ?## ????# ;; ## #?????????? | | ???????????? ## ???#; ; ??# ## #?????????? | | ??????????? ???# ##? ###? #?????????? | | ??????????? ?### # ## #????????? | | ?????????? ?#;; #???????? | | ?????????? ### ;# #???????? | | ?????????? @] #??## ????????? | | ????????? &!&& ##?????? ?#???????? | | ????????? %*&%####??????????????????? | | ????????? &&RR[#?????????????????????? | | ??????????# #### =%[=%%"#???????????????????? | | ??????????? ?????# =!!%""##??????????????????? | | ??????????? ??#; # =*% #?##???????????????? | | ????????? ## ### ##??????????????? | | ????????? ! ## #??????????????? | | ????????# " = #??????????????? | | ?????????# """ ##??????????????? | | ??????????? " "# ### #?????????? | | ???????????? "### #?????????? | | ???????????# "# " ### ##?????????? | | ???????????# "" "# ["! #?? #??????????? | | ???????????#? "" ""### #?? #??????????? | | ?????????????? "" ??# #??? #???????????? | | ??????????????? "" ?? ##?????????????????? | | ??????????????? "" ??# #??????????????????? | | ?????????????????"" ???## ##??????????????????? | | ????????????????" """"?????###???????????????????? | | ?????????????????###"????????????????????????????? | | ?????????????????????????????????????????????????? | | ?????????????????????????????????????????????????? | | ?????????????????????????????????????????????????? | +----------------------------------------------------+ Best States ------------- Heat Dissipation 25 Energy Generation 15 Energy Capacity 250 Matter Stores 395 Matter Capacity 400 Sight Range 16 Robot Scan Range 14 Terrain Scan Range 16 Terrain Scan Density 10 Core Shielding 20 Evasion (%) 44 Recoil Reduction 2 Item Schematics ----------------- None Robot Schematics ------------------ None Fabricated ------------ Nothing Alien Tech Used ----------------- None Achievements -------------- None Challenges ------------ None Game ------ Seed BiometalColdScrap Manual? 0 Play Time 00:24:31 Cumulative 3.5 hours Start 2024.05.07 @ 17:18:56 End 2024.05.07 @ 17:41:59 Sessions 1 Manual Loads 0 Difficulty Rogue Special Mode None Game No. 7 Rogue 7 Adventurer 0 Explorer 0 Win Type - Total 0 Types 0/0/0/0/0/0/0/0/0 Lore% 1 Gallery% 8 Achievement% 6 Wizard Run 0 Options --------- Layout 1 ASCII 0 Keyboard 0 Movement Mouse Keybinds 0 Fullscreen 2 Font 24/Smallcaps Map View 50x35 Zoom Use 0% Tactical HUD 0 Map Filters NONE Filters NONE Steam 1 RUN: fbfed036-7e01-45d0-b76e-1e1eb39dcd7d